fUSD/lending_fUSD_20250521
["ID","MTS","AMOUNT","RATE_DAILY","PERIOD"]
[361803340,1747816260994,-420.0,0.00035616,5]
[361803341,1747816261004,-420.0,0.00035616,5]
[361803342,1747816261014,-420.0,0.00035616,5]
[361803343,1747816261024,-351.52311096,0.00035616,5]
[361803344,1747816261034,-1521.4,0.00035616,5]
[361803345,1747816261044,-420.0,0.00035616,5]
[361803346,1747816261054,-437.02,0.00035616,5]
[361803347,1747816261063,-476.62,0.00035616,5]
[361803348,1747816261073,-433.57,0.00035616,5]
[361803349,1747816261083,-1234.85,0.00035616,5]
[361803350,1747816261093,-557.72,0.00035616,5]
[361803351,1747816261105,-2755.98,0.00035616,5]
[361803352,1747816261115,-799.83,0.00035616,5]
[361803353,1747816261125,-726.75,0.00035616,5]
[361803354,1747816261135,-323.15349097,0.00035616,5]
[361803355,1747816261145,-420.0,0.00035616,5]
[361803356,1747816261155,-1047.38,0.00035616,5]
[361803357,1747816261165,-973.97231845,0.00035616,5]
[361803358,1747816261307,-820.26768155,0.00035616,5]
[361803359,1747816261317,-1794.24,0.00035616,5]
[361803360,1747816261328,-1794.24,0.00035616,5]
[361803361,1747816261337,-1794.24,0.00035616,5]
[361803362,1747816261347,-420.0,0.00035616,5]
[361803363,1747816261358,-404.12333345,0.00035616,5]
[361803364,1747816261382,-1067.62523275,0.00035616,5]
[361803365,1747816261395,-322.4914338,0.00035616,5]
[361803366,1747816261405,-416.59956622,0.00035616,5]
[361803367,1747816261429,-1377.64043378,0.00035616,5]
[361803368,1747816261440,-1794.24,0.00035616,5]
[361803369,1747816261450,-1794.24,0.00035616,5]
[361803370,1747816261459,-1794.24,0.00035616,5]
[361803371,1747816261469,-420.0,0.00035616,5]
[361803372,1747816261478,-1005.78257246,0.00035616,5]
[361803373,1747816261490,-788.45742754,0.00035616,5]
[361803374,1747816261500,-1794.24,0.00035616,5]
[361803375,1747816261511,-1794.24,0.00035616,5]
[361803376,1747816261522,-1794.24,0.00035616,5]
[361803377,1747816261532,-219.93737245,0.00035616,5]
[361803386,1747817145483,1003.3,0.00011214,2]
[361803387,1747817353136,-161.63,0.00013699,2]
[361803388,1747817353157,-420.40074826,0.00013699,2]
[361803389,1747817353177,-500.0,0.00016438,2]
[361803390,1747817353197,-161.4694852,0.00019899,2]
[361803391,1747817353218,-420.40074826,0.00019999,2]
[361803392,1747817353238,-1000.0,0.00019999,2]
[361803393,1747817353261,-747.99557628,0.00019999,2]
[361803403,1747817431782,-287.53967128,0.00019999,2]
[361803405,1747817431793,-150.0,0.00019999,2]
[361803407,1747817431803,-150.0,0.00021369,2]
[361803409,1747817431814,-420.40074826,0.00021918,2]
[361803411,1747817431824,-500.0,0.00021918,2]
[361803412,1747817431834,-150.0,0.00022739,2]
[361803413,1747817431845,-150.0,0.00024109,2]
[361803414,1747817431855,-151.0,0.000248,7]
[361803415,1747817431865,-151.0,0.000249,7]
[361803416,1747817431877,-604.3673496,0.000249,12]
[361803417,1747817431887,-604.36734954,0.00025383,13]
[361803418,1747817431898,-150.0,0.00025479,2]
[361803419,1747817431908,-604.36734954,0.00025866,14]
[361803420,1747817431918,-604.36734954,0.00026348,14]
[361803421,1747817431929,-604.36734954,0.00026831,15]
[361803422,1747817431939,-150.0,0.00026849,2]
[361803423,1747817431950,-1200.0,0.00027169,2]
[361803424,1747817431960,-250.0,0.0002717,2]
[361803425,1747817431970,-250.0,0.00027279,2]
[361803426,1747817431980,-604.36734954,0.00027314,16]
[361803427,1747817431990,-500.0,0.00027397,2]
[361803428,1747817432000,-604.36734954,0.00027797,17]
[361803429,1747817432010,-632.9995,0.00028075,2]
[361803430,1747817432021,-150.0,0.00028218,2]
[361803431,1747817432032,-604.36734954,0.00028279,18]
[361803432,1747817432042,-604.36734954,0.00028762,19]
[361803433,1747817432053,-500.0,0.0002903,2]
[361803434,1747817432063,-604.36734954,0.00029245,20]
[361803435,1747817432072,-150.0,0.00029588,2]
[361803436,1747817432081,-604.36734954,0.00029728,21]
[361803437,1747817432091,-150.0,0.00029934,2]
[361803438,1747817432101,-604.36734954,0.0003021,22]
[361803440,1747817432111,-604.36734954,0.00030693,23]
[361803441,1747817432121,-150.0,0.00030958,2]
[361803442,1747817432133,-604.36734954,0.00031176,24]
[361803443,1747817432143,-500.0,0.00031402,7]
[361803444,1747817432154,-5986.73255422,0.00031426,2]
[361803445,1747817432175,-2237.5817208,0.00031426,2]
[361803446,1747817432188,-3285.93024673,0.00031426,2]
[361803447,1747817432200,-1225.64995436,0.00031426,2]
[361803448,1747817432212,-10006.33630502,0.00031426,2]
[361803449,1747817432351,-1157.76921887,0.00031426,2]
[361803451,1747817432362,-200.0,0.00031467,2]
[361803452,1747817432372,-310.74,0.00031562,120]
[361803453,1747817432382,-604.36734954,0.00031659,25]
[361803454,1747817432392,-382.52369534,0.0003181,2]
[361803455,1747817432421,-153.74630466,0.0003181,2]
[361803456,1747817432430,-178.47856135,0.00031952,7]
[361803457,1747817432441,-351.07636734,0.00032068,120]
[361803458,1747817432487,-245.12363266,0.00032068,120]
[361803459,1747817432497,-604.36734954,0.00032141,26]
[361803460,1747817432507,-721.8,0.00032208,120]
[361803461,1747817432518,-150.0,0.00032328,2]
[361803462,1747817432527,-604.36734954,0.00032624,27]
[361803463,1747817432537,-500.0,0.00032781,7]
[361803464,1747817432547,-150.99,0.00032876,2]
[361803465,1747817432557,-153.0,0.00033,14]
[361803466,1747817432567,-299.99,0.00033004,30]
[361803467,1747817432577,-604.36734954,0.00033107,28]
[361803468,1747817432587,-500.0,0.00033145,7]
[361803469,1747817432598,-153.0,0.00033151,30]
[361803470,1747817432608,-151.0,0.00033266,7]
[361803471,1747817432618,-154.88,0.000335,31]
[361803472,1747817432627,-604.36734954,0.0003359,29]
[361803473,1747817432637,-150.0,0.00033698,2]
[361803474,1747817432647,-494.70426035,0.00033818,2]
[361803475,1747817432659,-745.57475593,0.00033818,2]
[361803476,1747817432670,-329.52643,0.00033818,2]
[361803477,1747817437836,-300.0,0.00027796,2]
[361803478,1747817437848,-2383.6833661,0.00033818,2]
[361803479,1747817437874,-46.51118762,0.00033818,2]
[361803480,1747817437884,-808.71829025,0.00033836,30]
[361803481,1747817437895,-163.39,0.00033872,2]
[361803482,1747817437905,-8.30988045,0.00033887,2]
[361803483,1747817437919,-368.47889,0.00033887,2]
[361803484,1747817437932,-623.21122955,0.00033887,2]
[361803485,1747817437944,-57.67994545,0.00033918,30]
[361803486,1747817437956,-104.0637126,0.00033918,30]
[361803487,1747817437966,-424.63024571,0.00033973,30]
[361803488,1747817437979,-384.08804454,0.00033973,30]
[361803489,1747817437989,-161.74365805,0.00034055,30]
[361803490,1747817437999,-539.25841607,0.00034072,30]
[361803491,1747817438044,-65.10893347,0.00034072,30]
[361803492,1747817438055,-536.27,0.00034074,2]
[361803493,1747817438065,-808.71829025,0.0003411,30]
[361803494,1747817438076,-207.4,0.00034169,2]
[361803495,1747817438087,-1003.51598088,0.00034188,2]
[361803496,1747817438098,-161.74365805,0.00034192,30]
[361803497,1747817438108,-150.0,0.00034212,30]
[361803498,1747817438118,-150.0,0.00034212,30]
[361803499,1747817438129,-150.0,0.00034212,30]
[361803500,1747817438139,-150.0,0.00034212,30]
[361803501,1747817438149,-875.46791211,0.00034212,30]
[361803502,1747817438165,-346.68246087,0.00034212,30]
[361803503,1747817438176,-576.7464857,0.00034212,30]
[361803504,1747817438187,-3441.91630357,0.00034212,30]
[361803505,1747817438197,-166.31,0.00034223,30]
[361803506,1747817438208,-256.9425,0.00034246,2]
[361803508,1747817438218,-808.71829025,0.00034247,30]
[361803509,1747817438229,-161.74365805,0.00034329,30]
[361803510,1747817438240,-808.71829025,0.00034384,30]
[361803511,1747817438250,-161.74365805,0.00034466,30]
[361803512,1747817438260,-808.71829025,0.00034521,30]
[361803513,1747817438271,-153.0,0.00034521,30]
[361803514,1747817438285,-683.895095,0.00034547,4]
[361803515,1747817438294,-604.36734954,0.00034555,31]
[361803516,1747817438305,-161.74365805,0.00034603,30]
[361803517,1747817438315,-808.71829025,0.00034658,30]
[361803518,1747817438324,-208.9,0.00034729,2]
[361803519,1747817438335,-161.74365805,0.0003474,30]
[361803520,1747817438346,-808.71829025,0.00034795,30]
[361803521,1747817438357,-161.74365805,0.00034877,30]
[361803522,1747817438368,-1000.0,0.00034902,2]
[361803523,1747817438379,-155.0,0.00034902,2]
[361803524,1747817438390,-808.71829025,0.00034904,30]
[361803525,1747817438402,-915.9,0.00034932,2]
[361803526,1747817438412,-1234.54,0.00035,5]
[361803527,1747817438423,-9749.6602895,0.00035,5]
[361803528,1747817438434,-9878.0,0.00035,6]
[361803529,1747817438444,-9978.0,0.00035,4]
[361803530,1747817438454,-9878.0,0.00035,8]
[361803531,1747817438465,-161.74365805,0.00035014,30]
[361803532,1747817438476,-604.36734954,0.00035038,32]
[361803533,1747817438486,-808.71829025,0.00035041,30]
[361803534,1747817438497,-150.0,0.00035068,2]
[361803535,1747817438507,-935.0,0.00035135,2]
[361803536,1747817438518,-1309.0,0.00035135,2]
[361803537,1747817438528,-1150.0,0.00035135,2]
[361803538,1747817438539,-1469.821,0.00035135,2]
[361803539,1747817438549,-567.879,0.00035135,2]
[361803540,1747817438559,-1344.723,0.00035135,2]
[361803541,1747817438569,-988.767,0.00035135,2]
[361803542,1747817438580,-588.822,0.00035135,2]
[361803543,1747817438600,-154.0,0.00035135,2]
[361803544,1747817438613,-6834.0,0.00035135,2]
[361803545,1747817438624,-4043.0,0.00035135,2]
[361803546,1747817438634,-161.74365805,0.00035151,30]
[361803547,1747817438645,-808.71829025,0.00035178,30]
[361803548,1747817438657,-1168.134,0.0003518,41]
[361803549,1747817438667,-188.215,0.0003518,41]
[361803550,1747817438678,-5011.68051791,0.000352,60]
[361803551,1747817438689,-200.0,0.00035252,10]
[361803552,1747817438699,-200.0,0.00035262,10]
[361803553,1747817438710,-2285.41709884,0.00035286,10]
[361803554,1747817438720,-161.74365805,0.00035288,30]
[361803555,1747817438730,-5800.0,0.00035292,2]
[361803556,1747817438740,-1882.67436531,0.00035294,10]
[361803557,1747817438751,-2285.41709884,0.00035309,10]
[361803558,1747817438762,-808.71829025,0.00035315,30]
[361803559,1747817438772,-2285.41709884,0.00035324,10]
[361803560,1747817438782,-201.45,0.00035342,2]
[361803561,1747817438793,-1158.81,0.00035342,2]
[361803562,1747817438804,-1882.67436531,0.00035343,10]
[361803563,1747817438814,-300.0,0.00035345,2]
[361803564,1747817438824,-150.0,0.00035346,2]
[361803565,1747817438834,-699.7096588,0.00035348,10]
[361803566,1747817438845,-150.0,0.00035352,2]
[361803567,1747817438855,-941.33718265,0.00035362,10]
[361803568,1747817438866,-150.0,0.00035367,2]
[361803569,1747817438876,-300.0,0.00035382,2]
[361803570,1747817438887,-200.0,0.00035388,10]
[361803571,1747817438899,-699.7096588,0.00035393,10]
[361803572,1747817438910,-160.76006768,0.000354,2]
[361803573,1747817438920,-160.76006767,0.000354,2]
[361803574,1747817438931,-941.33718265,0.00035406,10]
[361803575,1747817438942,-2456.48256766,0.0003542,10]
[361803576,1747817438952,-235.1667163,0.0003542,2]
[361803577,1747817438964,-1882.67436531,0.00035422,10]
[361803578,1747817438974,-161.74365805,0.00035425,30]
[361803579,1747817438985,-150.0,0.00035426,2]
[361803580,1747817438995,-200.0,0.00035439,10]
[361803581,1747817439006,-2456.48256766,0.00035443,10]
[361803582,1747817439023,-150.0,0.00035444,2]
[361803583,1747817439033,-155.0,0.0003545,2]
[361803584,1747817439045,-150.0,0.00035457,2]
[361803585,1747817439055,-699.7096588,0.00035463,10]
[361803586,1747817439066,-150.0,0.00035476,2]
[361803587,1747817439076,-150.0,0.00035478,2]
[361803588,1747817439087,-2456.48256766,0.00035481,10]
[361803589,1747817439097,-150.0,0.00035481,2]
[361803590,1747817439108,-1121.7655,0.00035482,2]
[361803591,1747817439119,-941.33718265,0.00035486,10]
[361803592,1747817439130,-2500.0,0.00035496,2]
[361803593,1747817439141,-206.85625636,0.00035498,15]
[361803594,1747817439152,-150.0,0.00035499,2]
[361803595,1747817439163,-987.58015955,0.000355,2]
[361803596,1747817439174,-652.78846509,0.000355,37]
[361803597,1747817439186,-255.51820524,0.00035507,9]
[361803598,1747817439197,-150.0,0.00035508,2]
[361803599,1747817439208,-150.0,0.00035514,2]
[361803600,1747817439220,-195.7019,0.00035516,2]
[361803601,1747817439231,-500.0,0.00035516,2]
[361803602,1747817439243,-17363.2944,0.00035516,2]
[361803603,1747817439254,-5000.0,0.00035516,2]
[361803604,1747817439266,-227.53300882,0.00035516,2]
[361803605,1747817439281,-167.60640792,0.00035516,8]
[361803606,1747817439292,-154.71980582,0.00035516,7]
[361803607,1747817439304,-160.76006767,0.00035516,2]
[361803608,1747817439315,-992.33298266,0.00035516,2]
[361803609,1747817439327,-150.0,0.00035517,2]
[361803610,1747817439339,-604.36734954,0.00035521,33]
[361803611,1747817439351,-4915.84382526,0.0003553,2]
[361803612,1747817439363,-150.0,0.00035535,2]
[361803613,1747817439373,-215.0738,0.00035538,2]
[361803614,1747817439385,-10685.82969626,0.00035544,2]
[361803615,1747817439395,-46273.40480714,0.00035544,2]
[361803616,1747817439407,-150.0,0.00035549,2]
[361803617,1747817439418,-150.0,0.00035557,2]
[361803618,1747817439431,-300.0,0.00035558,2]
[361803619,1747817439448,-4915.84382526,0.00035563,2]
[361803620,1747817439460,-150.0,0.00035579,2]
[361803621,1747817439472,-300.0,0.00035585,2]
[361803622,1747817439484,-38659.0,0.00035589,2]
[361803623,1747817439495,-437.0,0.00035589,2]
[361803624,1747817439507,-151.0,0.00035595,2]
[361803625,1747817439521,-668.65185757,0.00035595,2]
[361803626,1747817439532,-1199.20597015,0.00035595,2]
[361803627,1747817439543,-668.65185757,0.00035595,2]
[361803628,1747817439555,-4915.84382526,0.00035595,2]
[361803629,1747817439566,-13557.1567569,0.00035595,2]
[361803630,1747817439577,-13557.1567569,0.00035596,2]
[361803631,1747817439589,-635.8705,0.00035599,2]
[361803632,1747817439601,-1000.0,0.000356,30]
[361803633,1747817439612,-150.0,0.00035605,2]
[361803634,1747817439623,-214.8,0.00035606,2]
[361803635,1747817439635,-182.54520472,0.00035606,2]
[361803636,1747817439646,-232209.83567572,0.00035606,2]
[361803637,1747817439664,-9966.30777892,0.00035606,2]
[361803638,1747817439678,-56081.30519736,0.00035606,2]
[361803639,1747817439688,-44398.39738507,0.00035606,2]
[361803640,1747817439701,-313.34441456,0.00035606,2]
[361803641,1747817439714,-1166.0,0.00035606,2]
[361803642,1747817439727,-1034.69240879,0.00035606,2]
[361803643,1747817439770,-3071.99996,0.00035606,2]
[361803644,1747817439783,-967.47231972,0.00035606,2]
[361803657,1747817441221,-1000.0,0.00035496,2]
[361803658,1747817441232,-683.51289362,0.00035606,2]
[361803659,1747817441415,-4401.33176608,0.00035606,2]
[361803681,1747817443709,-212.0,0.00033062,2]
[361803682,1747817443719,-1125.615544,0.00035606,2]
[361803683,1747817443878,-229412.32255416,0.00035606,2]
[361803684,1747817443888,-214.8,0.00035606,2]
[361803685,1747817443897,-214.8,0.00035606,2]
[361803686,1747817443907,-214.8,0.00035606,2]
[361803687,1747817443916,-214.8,0.00035606,2]
[361803688,1747817443926,-214.8,0.00035606,2]
[361803689,1747817443935,-12500.0,0.00035607,5]
[361803690,1747817443945,-666.0,0.00035615,10]
[361803691,1747817443954,-5000.0,0.00035615,2]
[361803692,1747817443963,-511.0,0.00035615,5]
[361803693,1747817443973,-694.54580813,0.00035616,2]
[361803694,1747817443982,-357071.6970257,0.00035616,2]
[361803695,1747817444009,-81392.93101402,0.00035616,2]
[361803696,1747817444203,-636.70297597,0.00035616,2]
[361803697,1747817444218,-23728.48367537,0.00035616,2]
[361803698,1747817444230,-410.30174383,0.00035616,2]
[361803699,1747817444253,-956.49999996,0.00035616,2]
[361803700,1747817445829,-53095.0,0.00035616,2]
[361803701,1747817445841,-153063.28727365,0.00035616,2]
[361803702,1747817445851,-166.645439,0.00035616,5]
[361803703,1747817445861,-5191.47053042,0.00035616,5]
[361803704,1747817445871,-420.0,0.00035616,5]
[361803705,1747817445880,-420.0,0.00035616,5]
[361803706,1747817445890,-420.0,0.00035616,5]
[361803707,1747817445899,-420.0,0.00035616,5]
[361803708,1747817445910,-420.0,0.00035616,5]
[361803709,1747817445919,-420.0,0.00035616,5]
[361803710,1747817445928,-420.0,0.00035616,5]
[361803711,1747817445938,-420.0,0.00035616,5]
[361803712,1747817445947,-503.44935571,0.00035616,5]
[361803713,1747817445957,-420.0,0.00035616,5]
[361803714,1747817445968,-420.0,0.00035616,5]
[361803715,1747817445977,-420.0,0.00035616,5]
[361803716,1747817445986,-420.0,0.00035616,5]
[361803717,1747817445996,-420.0,0.00035616,5]
[361803718,1747817446010,-342.39939538,0.00035616,5]
[361803719,1747817446028,-420.0,0.00035616,5]
[361803720,1747817446040,-420.0,0.00035616,5]
[361803721,1747817446050,-420.0,0.00035616,5]
[361803722,1747817446061,-420.0,0.00035616,5]
[361803723,1747817446070,-420.0,0.00035616,5]
[361803724,1747817446080,-508.84607465,0.00035616,5]
[361803725,1747817446089,-420.0,0.00035616,5]
[361803726,1747817446099,-420.0,0.00035616,5]
[361803727,1747817446111,-420.0,0.00035616,5]
[361803728,1747817446120,-401.31149845,0.00035616,5]
[361803729,1747817446131,-420.0,0.00035616,5]
[361803730,1747817446140,-420.0,0.00035616,5]
[361803731,1747817446150,-420.0,0.00035616,5]
[361803732,1747817446159,-420.0,0.00035616,5]
[361803733,1747817446168,-420.0,0.00035616,5]
[361803734,1747817446177,-420.0,0.00035616,5]
[361803735,1747817446187,-420.0,0.00035616,5]
[361803736,1747817446197,-420.0,0.00035616,5]
[361803737,1747817446206,-420.0,0.00035616,5]
[361803738,1747817446215,-151.0,0.00035616,7]
[361803739,1747817446224,-217.032235,0.00035616,7]
[361803740,1747817446234,-420.0,0.00035616,5]
[361803741,1747817446243,-151.0,0.00035616,7]
[361803742,1747817446253,-151.0,0.00035616,7]
[361803743,1747817446263,-151.0,0.00035616,7]
[361803744,1747817446273,-420.0,0.00035616,5]
[361803745,1747817446284,-420.0,0.00035616,5]
[361803746,1747817446293,-151.0,0.00035616,7]
[361803747,1747817446302,-420.0,0.00035616,5]
[361803748,1747817446313,-151.0,0.00035616,7]
[361803749,1747817446323,-420.0,0.00035616,5]
[361803750,1747817446332,-420.0,0.00035616,5]
[361803751,1747817446342,-420.0,0.00035616,5]
[361803752,1747817446354,-420.0,0.00035616,5]
[361803753,1747817446365,-420.0,0.00035616,5]
[361803754,1747817446375,-151.0,0.00035616,7]
[361803755,1747817446384,-151.0,0.00035616,7]
[361803756,1747817446393,-151.671724,0.00035616,7]
[361803757,1747817446403,-420.0,0.00035616,5]
[361803758,1747817446413,-420.0,0.00035616,5]
[361803759,1747817446422,-420.0,0.00035616,5]
[361803760,1747817446432,-420.0,0.00035616,5]
[361803761,1747817446441,-420.0,0.00035616,5]
[361803762,1747817446451,-420.0,0.00035616,5]
[361803763,1747817446460,-420.0,0.00035616,5]
[361803764,1747817446470,-420.0,0.00035616,5]
[361803765,1747817446479,-420.0,0.00035616,5]
[361803766,1747817446488,-420.0,0.00035616,5]
[361803767,1747817446498,-420.0,0.00035616,5]
[361803768,1747817446508,-420.0,0.00035616,5]
[361803769,1747817446517,-420.0,0.00035616,5]
[361803770,1747817446526,-420.0,0.00035616,5]
[361803771,1747817446536,-420.0,0.00035616,5]
[361803772,1747817446546,-403.99204062,0.00035616,5]
[361803773,1747817446555,-420.0,0.00035616,5]
[361803774,1747817446566,-420.0,0.00035616,5]
[361803775,1747817446575,-420.0,0.00035616,5]
[361803776,1747817446584,-420.0,0.00035616,5]
[361803777,1747817446593,-420.0,0.00035616,5]
[361803778,1747817446602,-243.529087,0.00035616,7]
[361803779,1747817446615,-420.0,0.00035616,5]
[361803780,1747817446624,-420.0,0.00035616,5]
[361803781,1747817446634,-420.0,0.00035616,5]
[361803782,1747817446643,-420.0,0.00035616,5]
[361803783,1747817446652,-1358.46,0.00035616,5]
[361803784,1747817446661,-200.0,0.00035616,2]
[361803785,1747817446670,-420.0,0.00035616,5]
[361803786,1747817446679,-504.09702237,0.00035616,5]
[361803787,1747817446689,-420.0,0.00035616,5]
[361803788,1747817446698,-420.0,0.00035616,5]
[361803789,1747817446707,-420.0,0.00035616,5]
[361803790,1747817446716,-420.0,0.00035616,5]
[361803791,1747817446725,-420.0,0.00035616,5]
[361803792,1747817446735,-420.0,0.00035616,5]
[361803793,1747817446744,-420.0,0.00035616,5]
[361803794,1747817446753,-157.096881,0.00035616,5]
[361803795,1747817446762,-420.0,0.00035616,5]
[361803796,1747817446771,-420.0,0.00035616,5]
[361803797,1747817446780,-420.0,0.00035616,5]
[361803798,1747817446789,-420.0,0.00035616,5]
[361803799,1747817446799,-151.0,0.00035616,7]
[361803800,1747817446809,-151.0,0.00035616,7]
[361803801,1747817446818,-420.0,0.00035616,5]
[361803802,1747817446828,-420.0,0.00035616,5]
[361803803,1747817446837,-404.63442923,0.00035616,5]
[361803804,1747817446846,-420.0,0.00035616,5]
[361803805,1747817446857,-535.38047519,0.00035616,5]
[361803806,1747817446867,-420.0,0.00035616,5]
[361803807,1747817446876,-420.0,0.00035616,5]
[361803808,1747817446885,-151.0,0.00035616,7]
[361803809,1747817446894,-295.60920284,0.00035616,5]
[361803810,1747817446904,-634.18,0.00035616,5]
[361803811,1747817446914,-185.707296,0.00035616,7]
[361803812,1747817446923,-748.17,0.00035616,5]
[361803813,1747817446933,-420.0,0.00035616,5]
[361803814,1747817446943,-420.0,0.00035616,5]
[361803815,1747817446952,-420.0,0.00035616,5]
[361803816,1747817446962,-420.0,0.00035616,5]
[361803817,1747817446972,-534.27,0.00035616,5]
[361803818,1747817446981,-420.0,0.00035616,5]
[361803819,1747817446990,-423.81,0.00035616,5]
[361803820,1747817446999,-420.0,0.00035616,5]
[361803821,1747817447010,-453.13,0.00035616,2]
[361803822,1747817447019,-1261.85,0.00035616,5]
[361803823,1747817447029,-150.0,0.00035616,2]
[361803824,1747817447037,-420.0,0.00035616,5]
[361803825,1747817447047,-163.752652,0.00035616,5]
[361803826,1747817447056,-1057.66,0.00035616,5]
[361803827,1747817447065,-420.0,0.00035616,5]
[361803828,1747817447075,-420.0,0.00035616,5]
[361803829,1747817447085,-420.0,0.00035616,5]
[361803830,1747817447094,-420.0,0.00035616,5]
[361803831,1747817447103,-420.0,0.00035616,5]
[361803832,1747817447114,-420.0,0.00035616,5]
[361803833,1747817447123,-420.0,0.00035616,5]
[361803834,1747817447133,-750.47067242,0.00035616,2]
[361803835,1747817447142,-611.37,0.00035616,5]
[361803836,1747817447152,-420.0,0.00035616,5]
[361803837,1747817447161,-731.49,0.00035616,5]
[361803838,1747817447172,-540.59,0.00035616,5]
[361803839,1747817447181,-420.0,0.00035616,5]
[361803840,1747817447190,-453.67,0.00035616,5]
[361803841,1747817447200,-591.65,0.00035616,5]
[361803842,1747817447210,-420.0,0.00035616,5]
[361803843,1747817447219,-150.0,0.00035616,2]
[361803844,1747817447229,-1512.52,0.00035616,5]
[361803845,1747817447238,-150.0,0.00035616,2]
[361803846,1747817447248,-150.0,0.00035616,2]
[361803847,1747817447257,-858.05,0.00035616,5]
[361803848,1747817447267,-420.0,0.00035616,5]
[361803849,1747817447280,-533.93666002,0.00035616,5]
[361803850,1747817447289,-150.0,0.00035616,2]
[361803851,1747817447299,-420.0,0.00035616,5]
[361803852,1747817447309,-420.0,0.00035616,5]
[361803853,1747817447319,-420.0,0.00035616,5]
[361803854,1747817447329,-420.0,0.00035616,5]
[361803855,1747817447338,-420.0,0.00035616,5]
[361803856,1747817447348,-1354.4,0.00035616,5]
[361803857,1747817447361,-420.0,0.00035616,5]
[361803858,1747817447371,-411.37645492,0.00035616,5]
[361803859,1747817448304,-8.62354508,0.00035616,5]
[361803860,1747817448315,-10658.66845492,0.00035616,2]
[361803861,1747817448328,-1784.55739793,0.00035616,2]
[361803862,1747817448338,-5949.49305396,0.00035616,2]
[361803863,1747817448348,-639.37,0.00035616,5]
[361803864,1747817448363,-8774.78694274,0.00035616,2]
[361803865,1747817448374,-484.51,0.00035616,5]
[361803866,1747817448384,-420.0,0.00035616,5]
[361803867,1747817448395,-420.0,0.00035616,5]
[361803868,1747817448404,-420.0,0.00035616,5]
[361803869,1747817448415,-420.0,0.00035616,5]
[361803870,1747817448425,-11122.87823148,0.00035616,2]
[361803871,1747817448451,-823.06687212,0.00035616,2]
[361803872,1747817448463,-716.23675207,0.00035616,2]
[361803873,1747817448475,-375.61068,0.00035616,2]
[361803874,1747817448487,-3274.49331136,0.00035616,2]
[361803875,1747817448499,-5000.0,0.00035616,2]
[361803876,1747817448583,-624.94584388,0.00035616,2]
[361803877,1747817448640,-2312.69599028,0.00035616,2]
[361803878,1747817448652,-2161.63499996,0.00035616,2]
[361803879,1747817448665,-2306.303355,0.00035616,2]
[361803881,1747818063221,1000.0,0.00027397,120]
[361803882,1747818073473,1000.0,0.00027397,120]
[361803883,1747818134690,1000.0,0.00027397,120]
[361803884,1747818144680,500.0,0.00027397,120]
[361803889,1747818565199,-154.28,0.00013699,2]
[361803890,1747818565220,-154.28,0.00026027,2]
[361803891,1747818565242,-368.97380959,0.00030125,7]
[361803907,1747818632898,-131.02619041,0.00030125,7]
[361803908,1747818632909,-200.0,0.00030727,117]
[361803909,1747818632919,-361.52653879,0.00031329,7]
[361803910,1747818632944,-138.47346121,0.00031329,7]
[361803911,1747818632954,-200.0,0.00031546,117]
[361803912,1747818632964,-1200.0,0.00031999,3]
[361803913,1747818632975,-735.61272054,0.00032,2]
[361803914,1747818632987,-2609.49592439,0.00032,2]
[361803915,1747818632999,-2892.85158688,0.00032,2]
[361803916,1747818633012,-269.4,0.00032,2]